[Event "Titled Tuesday Blitz August 24 2021"]
[White "Golubev, Mikhail"]
[Black "Srihari L R"]
[WhiteFideId "14100983"]
[BlackFideId "46617116"]
[WhiteElo "2374"]
[BlackElo "2121"]
[Result "0-1"]
[Round "04"]
[TimeControl "180+1"]
[Date "2021.08.24"]
[WhiteClock "0:00:08"]
[BlackClock "0:01:32"]

1. e4 {[%clk 0:03:00]}  c5 {[%clk 0:02:59]} 2. Nf3 {[%clk 0:03:00]}  Nc6 {[%clk 0:02:58]} 3. Nc3 {[%clk 0:03:00]}  e6 {[%clk 0:02:57]} 4. d4 {[%clk 0:03:00]}  cxd4 {[%clk 0:02:58]} 5. Nxd4 {[%clk 0:03:00]}  Nf6 {[%clk 0:02:57]} 6. Ndb5 {[%clk 0:02:56]}  d6 {[%clk 0:02:56]} 7. Bf4 {[%clk 0:02:56]}  e5 {[%clk 0:02:56]} 8. Bg5 {[%clk 0:02:56]}  a6 {[%clk 0:02:56]} 9. Na3 {[%clk 0:02:56]}  b5 {[%clk 0:02:56]} 10. Bxf6 {[%clk 0:02:56]}  gxf6 {[%clk 0:02:55]} 11. Nd5 {[%clk 0:02:56]}  Bg7 {[%clk 0:02:55]} 12. c3 {[%clk 0:02:56]}  f5 {[%clk 0:02:53]} 13. exf5 {[%clk 0:02:56]}  Bxf5 {[%clk 0:02:51]} 14. Nc2 {[%clk 0:02:57]}  O-O {[%clk 0:02:50]} 15. Nce3 {[%clk 0:02:57]}  Be6 {[%clk 0:02:50]} 16. Bd3 {[%clk 0:02:57]}  f5 {[%clk 0:02:48]} 17. O-O {[%clk 0:02:57]}  Ra7 {[%clk 0:02:45]} 18. a4 {[%clk 0:02:57]}  bxa4 {[%clk 0:02:43]} 19. Qxa4 {[%clk 0:02:36]}  Ne7 {[%clk 0:02:37]} 20. Nxe7+ {[%clk 0:02:35]}  Qxe7 {[%clk 0:02:36]} 21. Bc4 {[%clk 0:02:30]}  f4 {[%clk 0:02:31]} 22. Bxe6+ {[%clk 0:02:28]}  Qxe6 {[%clk 0:02:31]} 23. Qc4 {[%clk 0:02:22]}  Qxc4 {[%clk 0:02:17]} 24. Nxc4 {[%clk 0:02:23]}  d5 {[%clk 0:02:18]} 25. Nb6 {[%clk 0:02:23]}  d4 {[%clk 0:02:17]} 26. cxd4 {[%clk 0:02:23]}  e4 {[%clk 0:02:18]} 27. d5 {[%clk 0:02:18]}  Bxb2 {[%clk 0:02:16]} 28. Ra4 {[%clk 0:02:14]}  e3 {[%clk 0:02:15]} 29. fxe3 {[%clk 0:02:13]}  fxe3 {[%clk 0:02:16]} 30. Re1 {[%clk 0:01:16]}  Re7 {[%clk 0:02:03]} 31. Re2 {[%clk 0:01:03]}  Ref7 {[%clk 0:01:54]} 32. h4 {[%clk 0:00:53]}  Be5 {[%clk 0:01:45]} 33. g3 {[%clk 0:00:33]}  Rf1+ {[%clk 0:01:39]} 34. Kg2 {[%clk 0:00:32]}  R8f2+ {[%clk 0:01:38]} 35. Rxf2 {[%clk 0:00:32]}  Rxf2+ {[%clk 0:01:39]} 36. Kh3 {[%clk 0:00:31]}  e2 {[%clk 0:01:37]} 37. Re4 {[%clk 0:00:31]}  Bc3 {[%clk 0:01:37]} 38. d6 {[%clk 0:00:09]}  e1=Q {[%clk 0:01:33]} 39. Rxe1 {[%clk 0:00:10]}  Bxe1 {[%clk 0:01:33]} 40. d7 {[%clk 0:00:10]}  Rd2 {[%clk 0:01:33]} 41. Kg4 {[%clk 0:00:08]}  Bf2 {[%clk 0:01:32]} 0-1


[Site "https://www.chess.com"]

[Event "Titled Tuesday Blitz August 24 2021"]
[White "Harshavardhan G B"]
[Black "Tristan, Leonardo"]
[WhiteFideId "25059009"]
[BlackFideId "113816"]
[WhiteElo "1825"]
[BlackElo "2404"]
[Result "0-1"]
[Round "04"]
[TimeControl "180+1"]
[Date "2021.08.24"]
[WhiteClock "0:00:18"]
[BlackClock "0:00:12"]

1. f4 {[%clk 0:02:53]}  e5 {[%clk 0:02:59]} 2. fxe5 {[%clk 0:02:52]}  d6 {[%clk 0:02:59]} 3. exd6 {[%clk 0:02:53]}  Bxd6 {[%clk 0:03:00]} 4. Nf3 {[%clk 0:02:52]}  g5 {[%clk 0:03:00]} 5. g3 {[%clk 0:02:50]}  g4 {[%clk 0:03:01]} 6. Nh4 {[%clk 0:02:50]}  Ne7 {[%clk 0:03:01]} 7. Bg2 {[%clk 0:02:48]}  Ng6 {[%clk 0:02:59]} 8. Nxg6 {[%clk 0:02:47]}  hxg6 {[%clk 0:02:59]} 9. Kf2 {[%clk 0:02:33]}  Nc6 {[%clk 0:02:36]} 10. e3 {[%clk 0:02:31]}  Qf6+ {[%clk 0:02:34]} 11. Kg1 {[%clk 0:02:30]}  Ne5 {[%clk 0:02:35]} 12. Nc3 {[%clk 0:02:25]}  Nf3+ {[%clk 0:02:28]} 13. Bxf3 {[%clk 0:02:25]}  gxf3 {[%clk 0:02:28]} 14. Kf2 {[%clk 0:02:19]}  Bg4 {[%clk 0:01:27]} 15. Ne4 {[%clk 0:02:15]}  Qf5 {[%clk 0:01:16]} 16. d3 {[%clk 0:02:01]}  O-O-O {[%clk 0:01:12]} 17. Nxd6+ {[%clk 0:01:50]}  cxd6 {[%clk 0:01:11]} 18. e4 {[%clk 0:01:49]}  Qf6 {[%clk 0:01:00]} 19. Be3 {[%clk 0:01:44]}  Rh3 {[%clk 0:00:58]} 20. Qd2 {[%clk 0:01:02]}  Rdh8 {[%clk 0:00:53]} 21. Kg1 {[%clk 0:01:01]}  Qxb2 {[%clk 0:00:44]} 22. Rf1 {[%clk 0:00:59]}  Kb8 {[%clk 0:00:36]} 23. a4 {[%clk 0:00:52]}  Rc8 {[%clk 0:00:34]} 24. Rc1 {[%clk 0:00:47]}  Ka8 {[%clk 0:00:31]} 25. a5 {[%clk 0:00:45]}  f6 {[%clk 0:00:17]} 26. Kf2 {[%clk 0:00:41]}  Rch8 {[%clk 0:00:16]} 27. Kg1 {[%clk 0:00:40]}  g5 {[%clk 0:00:17]} 28. Rf1 {[%clk 0:00:36]}  Qe5 {[%clk 0:00:16]} 29. Qe1 {[%clk 0:00:32]}  Rc8 {[%clk 0:00:13]} 30. Rf2 {[%clk 0:00:28]}  Rxg3+ {[%clk 0:00:11]} 31. hxg3 {[%clk 0:00:18]}  Qxg3+ {[%clk 0:00:12]} 32. Kf1 {[%clk 0:00:19]}  Bh3+ {[%clk 0:00:13]} 33. Rxh3 {[%clk 0:00:19]}  Qxh3+ {[%clk 0:00:13]} 34. Kg1 {[%clk 0:00:20]}  Rh8 {[%clk 0:00:12]} 35. Rxf3 {[%clk 0:00:18]}  Qxf3 {[%clk 0:00:12]} 0-1


[Site "https://www.chess.com"]

[Event "Titled Tuesday Blitz August 24 2021"]
[White "Holt, Conrad"]
[Black "Chernobay, Artem"]
[WhiteFideId "2034387"]
[BlackFideId "4167406"]
[WhiteElo "2586"]
[BlackElo "2480"]
[Result "1-0"]
[Round "04"]
[TimeControl "180+1"]
[Date "2021.08.24"]
[WhiteClock "0:01:14"]
[BlackClock "0:00:29"]

1. d4 {[%clk 0:03:00]}  Nf6 {[%clk 0:02:56]} 2. c4 {[%clk 0:03:00]}  g6 {[%clk 0:02:57]} 3. Nc3 {[%clk 0:03:00]}  Bg7 {[%clk 0:02:57]} 4. e4 {[%clk 0:03:01]}  d6 {[%clk 0:02:57]} 5. Nf3 {[%clk 0:03:01]}  O-O {[%clk 0:02:58]} 6. h3 {[%clk 0:03:01]}  e5 {[%clk 0:02:50]} 7. dxe5 {[%clk 0:03:00]}  dxe5 {[%clk 0:02:49]} 8. Qxd8 {[%clk 0:03:01]}  Rxd8 {[%clk 0:02:49]} 9. Bg5 {[%clk 0:03:02]}  c6 {[%clk 0:02:40]} 10. Nxe5 {[%clk 0:03:01]}  Re8 {[%clk 0:02:38]} 11. O-O-O {[%clk 0:03:01]}  Na6 {[%clk 0:02:33]} 12. Nf3 {[%clk 0:02:58]}  Nc5 {[%clk 0:02:22]} 13. e5 {[%clk 0:02:57]}  Nfd7 {[%clk 0:02:20]} 14. Be3 {[%clk 0:02:56]}  Ne6 {[%clk 0:02:05]} 15. Ne4 {[%clk 0:02:56]}  Nxe5 {[%clk 0:02:05]} 16. Nd6 {[%clk 0:02:56]}  Rd8 {[%clk 0:02:02]} 17. Be2 {[%clk 0:02:54]}  Nxf3 {[%clk 0:01:37]} 18. Bxf3 {[%clk 0:02:54]}  Be5 {[%clk 0:01:37]} 19. c5 {[%clk 0:02:49]}  a5 {[%clk 0:01:28]} 20. Rhe1 {[%clk 0:02:37]}  Bf6 {[%clk 0:01:26]} 21. Bg4 {[%clk 0:02:30]}  h5 {[%clk 0:01:21]} 22. Nxc8 {[%clk 0:02:21]}  hxg4 {[%clk 0:01:15]} 23. Nb6 {[%clk 0:02:20]}  Rxd1+ {[%clk 0:01:09]} 24. Rxd1 {[%clk 0:02:20]}  Re8 {[%clk 0:01:10]} 25. hxg4 {[%clk 0:02:15]}  Be7 {[%clk 0:01:08]} 26. Na4 {[%clk 0:02:09]}  f5 {[%clk 0:01:06]} 27. gxf5 {[%clk 0:02:08]}  gxf5 {[%clk 0:01:07]} 28. g3 {[%clk 0:02:05]}  Nf8 {[%clk 0:01:03]} 29. Rd4 {[%clk 0:01:59]}  Kf7 {[%clk 0:01:01]} 30. Kc2 {[%clk 0:01:54]}  Ke6 {[%clk 0:00:50]} 31. Bf4 {[%clk 0:01:43]}  Nd7 {[%clk 0:00:45]} 32. Bd6 {[%clk 0:01:37]}  Bf6 {[%clk 0:00:42]} 33. Rd2 {[%clk 0:01:36]}  Rh8 {[%clk 0:00:41]} 34. Re2+ {[%clk 0:01:28]}  Kd5 {[%clk 0:00:39]} 35. Be7 {[%clk 0:01:25]}  Bd4 {[%clk 0:00:35]} 36. Rd2 {[%clk 0:01:22]}  Rh2 {[%clk 0:00:30]} 37. Nc3+ {[%clk 0:01:15]}  Ke5 {[%clk 0:00:29]} 38. f4+ {[%clk 0:01:14]} 1-0


[Site "https://www.chess.com"]

[Event "Titled Tuesday Blitz August 24 2021"]
[White "Ibarra Jerez, Jose Carlos"]
[Black "Bai, Adelard"]
[WhiteFideId "2226332"]
[BlackFideId "16301188"]
[WhiteElo "2602"]
[BlackElo "2120"]
[Result "1-0"]
[Round "04"]
[TimeControl "180+1"]
[Date "2021.08.24"]
[WhiteClock "0:00:05"]
[BlackClock "0:00:04"]

1. e4 {[%clk 0:03:00]}  e5 {[%clk 0:02:58]} 2. Nf3 {[%clk 0:03:00]}  Nc6 {[%clk 0:02:58]} 3. d4 {[%clk 0:03:00]}  exd4 {[%clk 0:02:58]} 4. Nxd4 {[%clk 0:03:01]}  Nf6 {[%clk 0:02:58]} 5. Nxc6 {[%clk 0:03:00]}  bxc6 {[%clk 0:02:59]} 6. Bd3 {[%clk 0:03:00]}  Bc5 {[%clk 0:02:52]} 7. e5 {[%clk 0:02:59]}  Nd5 {[%clk 0:02:43]} 8. Qg4 {[%clk 0:02:57]}  Kf8 {[%clk 0:02:16]} 9. O-O {[%clk 0:02:52]}  d6 {[%clk 0:01:59]} 10. Qa4 {[%clk 0:02:49]}  Be6 {[%clk 0:01:11]} 11. exd6 {[%clk 0:02:40]}  Bxd6 {[%clk 0:01:05]} 12. Nd2 {[%clk 0:02:14]}  Nf4 {[%clk 0:00:58]} 13. Be4 {[%clk 0:01:59]}  Ne2+ {[%clk 0:00:40]} 14. Kh1 {[%clk 0:01:59]}  Nxc1 {[%clk 0:00:41]} 15. Raxc1 {[%clk 0:01:52]}  Bf4 {[%clk 0:00:34]} 16. Qb4+ {[%clk 0:01:23]}  Qd6 {[%clk 0:00:26]} 17. Qxd6+ {[%clk 0:01:20]}  cxd6 {[%clk 0:00:26]} 18. Rcd1 {[%clk 0:01:16]}  d5 {[%clk 0:00:24]} 19. Bd3 {[%clk 0:01:13]}  Bxd2 {[%clk 0:00:23]} 20. Rxd2 {[%clk 0:01:13]}  f6 {[%clk 0:00:24]} 21. Re1 {[%clk 0:01:06]}  Kf7 {[%clk 0:00:24]} 22. Rde2 {[%clk 0:01:06]}  Rae8 {[%clk 0:00:20]} 23. Kg1 {[%clk 0:01:02]}  g6 {[%clk 0:00:21]} 24. f4 {[%clk 0:01:01]}  Bd7 {[%clk 0:00:21]} 25. Kf2 {[%clk 0:00:40]}  Rxe2+ {[%clk 0:00:20]} 26. Rxe2 {[%clk 0:00:41]}  a5 {[%clk 0:00:14]} 27. c4 {[%clk 0:00:35]}  d4 {[%clk 0:00:10]} 28. c5 {[%clk 0:00:31]}  Be6 {[%clk 0:00:10]} 29. a3 {[%clk 0:00:22]}  Rb8 {[%clk 0:00:08]} 30. Ke1 {[%clk 0:00:17]}  Rb3 {[%clk 0:00:04]} 31. Rxe6 {[%clk 0:00:16]}  Rxd3 {[%clk 0:00:02]} 32. Rxc6 {[%clk 0:00:16]}  Rb3 {[%clk 0:00:01]} 33. Rb6 {[%clk 0:00:14]}  Re3+ {[%clk 0:00:01]} 34. Kd2 {[%clk 0:00:13]}  Re4 {[%clk 0:00:01]} 35. g3 {[%clk 0:00:13]}  Re3 {[%clk 0:00:02]} 36. c6 {[%clk 0:00:06]}  Ke7 {[%clk 0:00:02]} 37. Rb7+ {[%clk 0:00:05]}  Kd6 {[%clk 0:00:02]} 38. Rd7+ {[%clk 0:00:04]}  Kxc6 {[%clk 0:00:02]} 39. Rxd4 {[%clk 0:00:05]}  Rb3 {[%clk 0:00:02]} 40. Kc2 {[%clk 0:00:05]}  Rf3 {[%clk 0:00:03]} 41. Rd3 {[%clk 0:00:05]}  Rf2+ {[%clk 0:00:03]} 42. Rd2 {[%clk 0:00:05]}  Rf1 {[%clk 0:00:04]} 43. Kd3 {[%clk 0:00:05]}  Rb1 {[%clk 0:00:04]} 44. Kc3 {[%clk 0:00:03]}  Rc1+ {[%clk 0:00:04]} 45. Kd4 {[%clk 0:00:04]}  Kd6 {[%clk 0:00:03]} 46. b4 {[%clk 0:00:03]}  axb4 {[%clk 0:00:02]} 47. axb4 {[%clk 0:00:04]}  Kc6 {[%clk 0:00:03]} 48. Re2 {[%clk 0:00:02]}  Rd1+ {[%clk 0:00:02]} 49. Kc4 {[%clk 0:00:01]}  Rc1+ {[%clk 0:00:02]} 50. Kd4 {[%clk 0:00:02]}  Rd1+ {[%clk 0:00:03]} 51. Kc3 {[%clk 0:00:03]}  Rc1+ {[%clk 0:00:01]} 52. Rc2 {[%clk 0:00:03]}  Rb1 {[%clk 0:00:01]} 53. Kc4 {[%clk 0:00:03]}  Kb6 {[%clk 0:00:02]} 54. Re2 {[%clk 0:00:03]}  Rc1+ {[%clk 0:00:02]} 55. Kd5 {[%clk 0:00:04]}  Rc6 {[%clk 0:00:02]} 56. Re6 {[%clk 0:00:04]}  Rxe6 {[%clk 0:00:03]} 57. Kxe6 {[%clk 0:00:04]}  Kb5 {[%clk 0:00:04]} 58. Kxf6 {[%clk 0:00:05]} 1-0


[Site "https://www.chess.com"]

[Event "Titled Tuesday Blitz August 24 2021"]
[White "Indjic, Aleksandar"]
[Black "Sharma, Dinesh K."]
[WhiteFideId "911925"]
[BlackFideId "5004110"]
[WhiteElo "2643"]
[BlackElo "2392"]
[Result "1-0"]
[Round "04"]
[TimeControl "180+1"]
[Date "2021.08.24"]
[WhiteClock "0:01:23"]
[BlackClock "0:01:43"]

1. e4 {[%clk 0:03:00]}  e6 {[%clk 0:02:58]} 2. d3 {[%clk 0:02:59]}  c5 {[%clk 0:02:56]} 3. g3 {[%clk 0:02:51]}  h5 {[%clk 0:02:55]} 4. Nh3 {[%clk 0:02:50]}  h4 {[%clk 0:02:54]} 5. g4 {[%clk 0:02:49]}  d5 {[%clk 0:02:53]} 6. Nd2 {[%clk 0:02:48]}  Nc6 {[%clk 0:02:52]} 7. f4 {[%clk 0:02:46]}  Nf6 {[%clk 0:02:50]} 8. g5 {[%clk 0:02:40]}  Nd7 {[%clk 0:02:46]} 9. Bg2 {[%clk 0:02:35]}  d4 {[%clk 0:02:46]} 10. a4 {[%clk 0:02:33]}  b6 {[%clk 0:02:46]} 11. Nc4 {[%clk 0:02:32]}  Bb7 {[%clk 0:02:46]} 12. O-O {[%clk 0:02:29]}  Qc7 {[%clk 0:02:46]} 13. g6 {[%clk 0:02:21]}  f6 {[%clk 0:02:42]} 14. Qg4 {[%clk 0:02:19]}  O-O-O {[%clk 0:02:23]} 15. Qxe6 {[%clk 0:02:18]}  Nb4 {[%clk 0:02:22]} 16. Rf2 {[%clk 0:02:16]}  Qc6 {[%clk 0:02:22]} 17. Qxc6+ {[%clk 0:02:11]}  Bxc6 {[%clk 0:02:23]} 18. b3 {[%clk 0:02:10]}  Be7 {[%clk 0:02:18]} 19. Ba3 {[%clk 0:02:07]}  Na6 {[%clk 0:02:14]} 20. f5 {[%clk 0:02:06]}  Ne5 {[%clk 0:02:12]} 21. Nf4 {[%clk 0:01:54]}  Nb8 {[%clk 0:02:01]} 22. Ne6 {[%clk 0:01:52]}  Rdg8 {[%clk 0:02:00]} 23. Nxe5 {[%clk 0:01:27]}  fxe5 {[%clk 0:01:59]} 24. Bc1 {[%clk 0:01:27]}  Nd7 {[%clk 0:01:55]} 25. Bh3 {[%clk 0:01:25]}  Nf6 {[%clk 0:01:54]} 26. Ng5 {[%clk 0:01:25]}  Re8 {[%clk 0:01:45]} 27. Nf7 {[%clk 0:01:24]}  Rhg8 {[%clk 0:01:45]} 28. Nxe5 {[%clk 0:01:23]}  Bb7 {[%clk 0:01:43]} 29. Nc4 {[%clk 0:01:23]} 1-0


[Site "https://www.chess.com"]

[Event "Titled Tuesday Blitz August 24 2021"]
[White "Jacobson, Aaron"]
[Black "Ivanchuk, Vasyl"]
[WhiteFideId "2089912"]
[BlackFideId "14100010"]
[WhiteElo "2265"]
[BlackElo "2710"]
[Result "1/2-1/2"]
[Round "04"]
[TimeControl "180+1"]
[Date "2021.08.24"]
[WhiteClock "0:00:06"]
[BlackClock "0:00:02"]

1. e4 {[%clk 0:03:00]}  e5 {[%clk 0:02:59]} 2. d4 {[%clk 0:02:56]}  exd4 {[%clk 0:02:58]} 3. Qxd4 {[%clk 0:02:57]}  Nc6 {[%clk 0:02:57]} 4. Qd3 {[%clk 0:02:58]}  g6 {[%clk 0:02:55]} 5. Nc3 {[%clk 0:02:57]}  Bg7 {[%clk 0:02:55]} 6. Bf4 {[%clk 0:02:57]}  d6 {[%clk 0:02:54]} 7. O-O-O {[%clk 0:02:57]}  Nge7 {[%clk 0:02:49]} 8. f3 {[%clk 0:02:55]}  O-O {[%clk 0:02:47]} 9. h4 {[%clk 0:02:55]}  f5 {[%clk 0:02:44]} 10. Qd2 {[%clk 0:02:53]}  Be6 {[%clk 0:02:31]} 11. h5 {[%clk 0:02:41]}  Qd7 {[%clk 0:02:31]} 12. hxg6 {[%clk 0:02:39]}  Nxg6 {[%clk 0:02:31]} 13. Bh6 {[%clk 0:02:36]}  Bxh6 {[%clk 0:02:17]} 14. Rxh6 {[%clk 0:02:31]}  f4 {[%clk 0:02:03]} 15. Nd5 {[%clk 0:02:27]}  Nce5 {[%clk 0:01:57]} 16. Ne2 {[%clk 0:02:24]}  Bxd5 {[%clk 0:01:50]} 17. exd5 {[%clk 0:02:22]}  Qg7 {[%clk 0:01:26]} 18. Rh5 {[%clk 0:02:09]}  Nc4 {[%clk 0:01:26]} 19. Qd4 {[%clk 0:02:09]}  Ne3 {[%clk 0:01:26]} 20. Re1 {[%clk 0:01:59]}  Rae8 {[%clk 0:01:21]} 21. Qxg7+ {[%clk 0:01:52]}  Kxg7 {[%clk 0:01:21]} 22. Nd4 {[%clk 0:01:52]}  Rf7 {[%clk 0:01:13]} 23. Ne6+ {[%clk 0:01:51]}  Kf6 {[%clk 0:01:13]} 24. c4 {[%clk 0:01:26]}  c6 {[%clk 0:01:06]} 25. Bd3 {[%clk 0:00:43]}  cxd5 {[%clk 0:00:57]} 26. cxd5 {[%clk 0:00:42]}  Ree7 {[%clk 0:00:24]} 27. Rxe3 {[%clk 0:00:36]}  Rc7+ {[%clk 0:00:21]} 28. Nxc7 {[%clk 0:00:21]}  Rxc7+ {[%clk 0:00:21]} 29. Kd2 {[%clk 0:00:19]}  fxe3+ {[%clk 0:00:21]} 30. Kxe3 {[%clk 0:00:20]}  Kg7 {[%clk 0:00:20]} 31. f4 {[%clk 0:00:14]}  Rc1 {[%clk 0:00:14]} 32. Kd2 {[%clk 0:00:09]}  Rg1 {[%clk 0:00:12]} 33. Bxg6 {[%clk 0:00:08]}  Rxg2+ {[%clk 0:00:11]} 34. Kc3 {[%clk 0:00:09]}  hxg6 {[%clk 0:00:11]} 35. Rg5 {[%clk 0:00:08]}  Rf2 {[%clk 0:00:11]} 36. Rg4 {[%clk 0:00:06]}  Kf6 {[%clk 0:00:11]} 37. a4 {[%clk 0:00:06]}  a5 {[%clk 0:00:09]} 38. b4 {[%clk 0:00:04]}  axb4+ {[%clk 0:00:08]} 39. Kxb4 {[%clk 0:00:05]}  Rc2 {[%clk 0:00:07]} 40. Rg5 {[%clk 0:00:03]}  Rc5 {[%clk 0:00:05]} 41. a5 {[%clk 0:00:02]}  Kf7 {[%clk 0:00:03]} 42. Kb3 {[%clk 0:00:03]}  Kf6 {[%clk 0:00:03]} 43. Kb4 {[%clk 0:00:03]}  Kf7 {[%clk 0:00:03]} 44. f5 {[%clk 0:00:04]}  gxf5 {[%clk 0:00:03]} 45. Rxf5+ {[%clk 0:00:04]}  Ke7 {[%clk 0:00:03]} 46. Rh5 {[%clk 0:00:05]}  Kd7 {[%clk 0:00:02]} 47. Rh7+ {[%clk 0:00:05]}  Kc8 {[%clk 0:00:03]} 48. Rh8+ {[%clk 0:00:06]}  Kc7 {[%clk 0:00:02]} 49. Rh5 {[%clk 0:00:06]}  Rc2 {[%clk 0:00:02]} 50. Rh7+ {[%clk 0:00:05]}  Kc8 {[%clk 0:00:02]} 51. Rh6 {[%clk 0:00:04]}  Kc7 {[%clk 0:00:02]} 52. Rh7+ {[%clk 0:00:05]}  Kc8 {[%clk 0:00:02]} 53. Rh6 {[%clk 0:00:06]}  Kc7 {[%clk 0:00:02]} 54. Rh7+ {[%clk 0:00:06]} 1/2-1/2


[Site "https://www.chess.com"]

[Event "Titled Tuesday Blitz August 24 2021"]
[White "Kamsky, Gata"]
[Black "Real De Azua, Ernesto"]
[WhiteFideId "2000024"]
[BlackFideId "108154"]
[WhiteElo "2644"]
[BlackElo "2476"]
[Result "1-0"]
[Round "04"]
[TimeControl "180+1"]
[Date "2021.08.24"]
[WhiteClock "0:00:26"]
[BlackClock "0:00:07"]

1. d4 {[%clk 0:03:00]}  Nf6 {[%clk 0:02:56]} 2. Nf3 {[%clk 0:03:00]}  b6 {[%clk 0:02:54]} 3. Bf4 {[%clk 0:02:59]}  Bb7 {[%clk 0:02:53]} 4. e3 {[%clk 0:03:00]}  d6 {[%clk 0:02:53]} 5. h3 {[%clk 0:03:00]}  g6 {[%clk 0:02:54]} 6. a4 {[%clk 0:03:00]}  a6 {[%clk 0:02:53]} 7. Nbd2 {[%clk 0:02:58]}  Bg7 {[%clk 0:02:53]} 8. c3 {[%clk 0:02:58]}  O-O {[%clk 0:02:53]} 9. Bc4 {[%clk 0:02:58]}  e6 {[%clk 0:02:49]} 10. O-O {[%clk 0:02:57]}  Ne4 {[%clk 0:02:37]} 11. Nxe4 {[%clk 0:02:55]}  Bxe4 {[%clk 0:02:37]} 12. Nd2 {[%clk 0:02:51]}  Bb7 {[%clk 0:02:37]} 13. e4 {[%clk 0:02:51]}  Nd7 {[%clk 0:02:35]} 14. Re1 {[%clk 0:02:34]}  Qe7 {[%clk 0:02:33]} 15. Nf3 {[%clk 0:02:32]}  e5 {[%clk 0:02:26]} 16. Bg5 {[%clk 0:02:32]}  Bf6 {[%clk 0:02:23]} 17. Bh6 {[%clk 0:02:25]}  Bg7 {[%clk 0:02:23]} 18. Qd2 {[%clk 0:02:25]}  Nf6 {[%clk 0:02:15]} 19. Bg5 {[%clk 0:02:21]}  Rad8 {[%clk 0:02:01]} 20. Qe2 {[%clk 0:02:16]}  exd4 {[%clk 0:01:43]} 21. cxd4 {[%clk 0:02:09]}  Qxe4 {[%clk 0:01:21]} 22. Qxe4 {[%clk 0:02:06]}  Nxe4 {[%clk 0:01:21]} 23. Bxd8 {[%clk 0:02:06]}  Rxd8 {[%clk 0:01:22]} 24. Bxa6 {[%clk 0:01:56]}  Bxa6 {[%clk 0:01:13]} 25. Rxe4 {[%clk 0:01:56]}  Bf6 {[%clk 0:01:10]} 26. Rc1 {[%clk 0:01:52]}  c5 {[%clk 0:01:05]} 27. dxc5 {[%clk 0:01:43]}  dxc5 {[%clk 0:01:04]} 28. b4 {[%clk 0:01:42]}  Bd3 {[%clk 0:00:53]} 29. Rf4 {[%clk 0:01:36]}  Be7 {[%clk 0:00:32]} 30. Ne5 {[%clk 0:01:30]}  Bg5 {[%clk 0:00:27]} 31. Rf3 {[%clk 0:00:55]}  Bxc1 {[%clk 0:00:25]} 32. Nxd3 {[%clk 0:00:55]}  cxb4 {[%clk 0:00:22]} 33. Nxb4 {[%clk 0:00:39]}  Bg5 {[%clk 0:00:18]} 34. Rb3 {[%clk 0:00:32]}  Rd1+ {[%clk 0:00:16]} 35. Kh2 {[%clk 0:00:32]}  Bf4+ {[%clk 0:00:15]} 36. g3 {[%clk 0:00:32]}  Bd6 {[%clk 0:00:16]} 37. Nd3 {[%clk 0:00:31]}  Bc5 {[%clk 0:00:15]} 38. a5 {[%clk 0:00:30]}  Bxf2 {[%clk 0:00:07]} 39. Nxf2 {[%clk 0:00:27]}  Rd2 {[%clk 0:00:07]} 40. axb6 {[%clk 0:00:25]}  Rxf2+ {[%clk 0:00:07]} 41. Kg1 {[%clk 0:00:26]} 1-0


[Site "https://www.chess.com"]

[Event "Titled Tuesday Blitz August 24 2021"]
[White "Koridze, Lile"]
[Black "Zeltsan, Joseph"]
[WhiteFideId "13612514"]
[BlackFideId "30932980"]
[WhiteElo "1978"]
[BlackElo "2195"]
[Result "0-1"]
[Round "04"]
[TimeControl "180+1"]
[Date "2021.08.24"]
[WhiteClock "0:00:04"]
[BlackClock "0:00:08"]

1. d4 {[%clk 0:03:00]}  Nf6 {[%clk 0:02:58]} 2. c4 {[%clk 0:03:01]}  e6 {[%clk 0:02:58]} 3. Nc3 {[%clk 0:03:00]}  Bb4 {[%clk 0:02:55]} 4. e3 {[%clk 0:03:00]}  O-O {[%clk 0:02:55]} 5. Bd3 {[%clk 0:03:00]}  d5 {[%clk 0:02:55]} 6. Nf3 {[%clk 0:03:00]}  c5 {[%clk 0:02:56]} 7. O-O {[%clk 0:03:00]}  cxd4 {[%clk 0:02:56]} 8. exd4 {[%clk 0:03:01]}  dxc4 {[%clk 0:02:55]} 9. Bxc4 {[%clk 0:03:01]}  b6 {[%clk 0:02:56]} 10. Bg5 {[%clk 0:02:52]}  Bb7 {[%clk 0:02:54]} 11. Ne5 {[%clk 0:02:52]}  Bxc3 {[%clk 0:02:53]} 12. bxc3 {[%clk 0:02:52]}  Nbd7 {[%clk 0:02:52]} 13. Qe2 {[%clk 0:02:47]}  Rc8 {[%clk 0:02:40]} 14. Bd3 {[%clk 0:02:37]}  Nxe5 {[%clk 0:02:34]} 15. dxe5 {[%clk 0:02:08]}  Qd5 {[%clk 0:01:44]} 16. f3 {[%clk 0:02:07]}  Rxc3 {[%clk 0:01:27]} 17. Rad1 {[%clk 0:01:42]}  Qc5+ {[%clk 0:01:26]} 18. Kh1 {[%clk 0:01:41]}  Nd5 {[%clk 0:01:14]} 19. Qe4 {[%clk 0:01:25]}  Rxd3 {[%clk 0:01:09]} 20. Qxd3 {[%clk 0:01:21]}  h6 {[%clk 0:00:58]} 21. Bh4 {[%clk 0:00:50]}  Rc8 {[%clk 0:00:47]} 22. Rfe1 {[%clk 0:00:44]}  Nf4 {[%clk 0:00:20]} 23. Qd2 {[%clk 0:00:34]}  g5 {[%clk 0:00:12]} 24. Rc1 {[%clk 0:00:28]}  Qf8 {[%clk 0:00:10]} 25. Bg3 {[%clk 0:00:25]}  Nd5 {[%clk 0:00:10]} 26. h3 {[%clk 0:00:22]}  Rxc1 {[%clk 0:00:09]} 27. Rxc1 {[%clk 0:00:21]}  Kh8 {[%clk 0:00:09]} 28. h4 {[%clk 0:00:21]}  Qg8 {[%clk 0:00:07]} 29. Kh2 {[%clk 0:00:20]}  Qh7 {[%clk 0:00:05]} 30. Rc4 {[%clk 0:00:10]}  Qf5 {[%clk 0:00:05]} 31. hxg5 {[%clk 0:00:07]}  hxg5 {[%clk 0:00:06]} 32. Rg4 {[%clk 0:00:07]}  Qh7+ {[%clk 0:00:06]} 33. Kg1 {[%clk 0:00:07]}  Qb1+ {[%clk 0:00:07]} 34. Kf2 {[%clk 0:00:06]}  Nb4 {[%clk 0:00:02]} 35. Ke3 {[%clk 0:00:04]}  Nd5+ {[%clk 0:00:01]} 36. Kf2 {[%clk 0:00:04]}  Nb4 {[%clk 0:00:02]} 37. Qd8+ {[%clk 0:00:04]}  Kh7 {[%clk 0:00:01]} 38. Rxb4 {[%clk 0:00:02]}  Qxb4 {[%clk 0:00:01]} 39. Qxg5 {[%clk 0:00:02]}  Qc5+ {[%clk 0:00:01]} 40. Kf1 {[%clk 0:00:03]}  Qc4+ {[%clk 0:00:01]} 41. Kf2 {[%clk 0:00:03]}  Qc2+ {[%clk 0:00:02]} 42. Ke3 {[%clk 0:00:03]}  Qc1+ {[%clk 0:00:02]} 43. Kd3 {[%clk 0:00:03]}  Qxg5 {[%clk 0:00:03]} 44. Kd4 {[%clk 0:00:03]}  Qg6 {[%clk 0:00:04]} 45. Ke3 {[%clk 0:00:03]}  Qf5 {[%clk 0:00:05]} 46. Kf2 {[%clk 0:00:04]}  Qg6 {[%clk 0:00:06]} 47. Bf4 {[%clk 0:00:04]}  Qh5 {[%clk 0:00:07]} 48. g4 {[%clk 0:00:04]}  Qg6 {[%clk 0:00:08]} 0-1


[Site "https://www.chess.com"]